Cogmind - Beta 13 @@@ ROGUE MODE // 2024.07.29 @ 14:02:32 Player: Sgt. SmokeWeed Result: Destroyed by G-47 Trooper with Particle Gun Performance ------------- Evolutions (0) 0 Regions Visited (2) 400 Robots Destroyed (13) 65 Value Destroyed (257) 257 Prototype IDs (0) 0 Alien Tech Used (0) 0 Bonus (0) 0 TOTAL SCORE: 722 Bonus ------- None Cogmind --------- Core Integrity 0/250 Matter 138/300 Energy 120/250 System Corruption 0% Temperature Warm (144) Movement Core (150) Ox2 Location -10/Mines Parts ------- > --- POWER (1) -------- Ion Engine > --- PROPULSION (2) --- (None) > --- UTILITY (2) ------ (None) > --- WEAPON (2) ------- Medium Laser > --- INVENTORY (5) ---- Light Assault Rifle Peak State ------------ > --- POWER ------------ Light Ion Engine > --- PROPULSION ------- Light Treads Light Treads > --- UTILITY ---------- (None) > --- WEAPON ----------- Medium Laser Small Laser > --- INVENTORY -------- (None) [Rating: 5] Favorites ----------- Power Light Ion Engine Engine Light Ion Engine Propulsion Light Treads Treads Light Treads Utility None Weapon Medium Laser Energy Gun Medium Laser Ballistic Gun Light Assault Rifle Ballistic Cannon Light Cannon Launcher Grenade Launcher Build | -11 -10 -10 ------- Run | Yrd Mat Min Slots Evolved . | . . . Power . | . . . Propulsion . | . . . Utility . | . . . Weapon . | . . . Parts Attached 13 | 6 2 5 Power 3 | 1 . 2 Engine 3 | 1 . 2 Core . | . . . Reactor . | . . . Propulsion 2 | 2 . . Treads 2 | 2 . . Leg . | . . . Wheel . | . . . Hover . | . . . Flight . | . . . Utility . | . . . Device . | . . . Storage . | . . . Processor . | . . . Hackware . | . . . Protection . | . . . Artifact . | . . . Weapon 8 | 3 2 3 Energy Gun 4 | 3 . 1 Energy Cannon . | . . . Ballistic Gun 2 | . . 2 Ballistic Cannon 1 | . 1 . Launcher 1 | . 1 . Special Weapon . | . . . Impact Weapon . | . . . Slashing Weapon . | . . . Piercing Weapon . | . . . Special Melee Weapon . | . . . Unidentified Prototypes . | . . . Parts Lost 6 | . . 6 Power 2 | . . 2 Propulsion 2 | . . 2 Utility . | . . . Weapon 2 | . . 2 Highest Loss Streak 3 | . . 3 To Critical Strikes . | . . . Average Slot Usage (%) 62 | . 71 56 Engine 12 | . 14 11 Treads 22 | . 28 18 Energy Gun 10 | . 15 6 Ballistic Cannon 9 | . 4 13 Launcher 6 | . 7 5 Naked Turns . | . . . Heaviest Build 9 | 7 9 9 Greatest Support 40 | 40 40 40 Greatest Overweight (x) 1 | 1 . 1 Average Overweight (x) . | . . . Largest Inventory Capacity 5 | 5 5 5 Average Capacity 5 | 5 5 5 Most Carried 2 | . 1 2 Average Carried . | . . 1 Final Capacity 5 | 5 5 5 Final Carried 1 | . 1 1 Class Distribution -------------------- 100% | Mutant Dominant Class ---------------- Mutant | -10/Materials Mutant | -10/Mines Resources | -11 -10 -10 ----------- Run | Yrd Mat Min Matter Collected 330 | 173 121 36 Remotely . | . . . Salvage Created 219 | . 175 44 Parts 18 | . 10 8 Haulers Intercepted . | . . . Recyclers Shooed . | . . . Parts Field Recycled . | . . . Retrieved Matter . | . . . Parts Self-Destructed . | . . . Prevented . | . . . Kills | -11 -10 -10 ------- Run | Yrd Mat Min Combat Hostiles Destroyed 14 | . 6 8 Guns 1 | . 1 . Cannons 3 | . 2 1 AOE 10 | . 3 7 Classes Destroyed 5 | . 4 1 Recycler 1 | . 1 . Watcher 2 | . 2 . Swarmer 6 | . 3 3 Grunt 4 | . 3 1 Assembled 4 | . . 4 Best Kill Streak 10 | . 7 10 Combat Bots Only 8 | . 5 8 Max Kills in Single Turn 2 | . 2 2 Gunslinging . | . . . Exploded 2 | . 2 2 Melee . | . . . Uniques/NPCs Destroyed . | . . . Combat | -11 -10 -10 -------- Run | Yrd Mat Min Hostile Shots Fired 63 | . 18 45 Missed 22 | . 6 16 Damage Taken 811 | . 172 639 Core 260 | . 10 250 Absorbed by Shields . | . . . Core Remaining (%) 100 | 100 . . Volleys Fired 28 | . 10 18 Largest 2 | . 2 2 Hottest 100 | . 100 85 Shots Fired 48 | . 18 30 Gun 15 | . 6 9 Cannon 22 | . 7 15 Launcher 11 | . 5 6 Special . | . . . Kinetic 22 | . 7 15 Thermal 15 | . 6 9 Explosive 11 | . 5 6 Electromagnetic . | . . . Robot Hit Streak 9 | . 9 4 Robot Miss Streak 5 | . 1 5 Penetration Max . | . . . Secondary Targets . | . . . Shots Hit Robots 22 | . 10 12 Core Hits 29 | . 16 13 Critical Kills . | . . . Critical Parts Destroyed . | . . . Critical Strikes 1 | . . 1 Burn 1 | . . 1 Melee Attacks . | . . . Impact . | . . . Slashing . | . . . Piercing . | . . . Sneak Attacks . | . . . Combat Hostiles . | . . . Follow-up Attacks . | . . . Damage Inflicted 1117 | . 523 594 Guns 112 | . 50 62 Cannons 181 | . 71 110 Explosions 824 | . 402 422 Melee . | . . . Ramming . | . . . Kinetic 181 | . 71 110 Thermal 112 | . 50 62 Explosive 824 | . 402 422 Electromagnetic . | . . . Impact . | . . . Slashing . | . . . Piercing . | . . . Highest Corruption . | . . . Average Corruption . | . . . Corruption Purged . | . . . Corruption Blocked . | . . . Overload Shots . | . . . Overflow Damage 37 | . 20 17 Projectiles 11 | . . 11 Explosions 26 | . 20 6 Melee . | . . . Knockbacks 2 | . . 2 Impact . | . . . Kinetic 2 | . . 2 Secondary . | . . . Self-Inflicted Damage 94 | . 51 43 Shots 5 | . 3 2 Rammed 2 | . . 2 Targets Rammed 2 | . . 2 Kicked . | . . . Crushed . | . . . Highest Temperature 117 | . 84 117 Average Temperature 36 | . 20 45 Received Heat Transfer 241 | . 48 193 Siege Activations . | . . . Robots Corrupted . | . . . Combat Hostiles . | . . . Parts Fried . | . . . Impact Corruptions . | . . . Robots Melted . | . . . Combat Hostiles . | . . . Parts Melted 1 | . 1 . Heat Transferred 407 | . 148 259 Parts Sabotaged . | . . . Parts Stolen . | . . . Parts Stripped . | . . . Power Chain Reactions . | . . . Alert | -11 -10 -10 ------- Run | Yrd Mat Min Peak Influence 231 | . 231 226 Initial 90 | . . 90 Average 123 | . 66 197 Maximum Alert Level 1 | . 1 1 Low Security (%) 77 | 100 91 61 Level 1 22 | . 8 38 Level 2 . | . . . Level 3 . | . . . Level 4 . | . . . Level 5 . | . . . High Security . | . . . Max Security . | . . . Squads Dispatched . | . . . Investigation . | . . . Extermination . | . . . Reinforcement . | . . . Assault . | . . . Garrison . | . . . Intercept . | . . . Searches Triggered . | . . . Construction Impeded . | . . . Haulers Reinforced . | . . . Active Scanning Responses . | . . . Cargo Convoy Interrupts . | . . . Stealth | -11 -10 -10 --------- Run | Yrd Mat Min Distress Signals 1 | . 1 . Communications Jammed . | . . . Distress Signals . | . . . Times Spotted 20 | . 9 11 Peak Tracking Total 6 | . 5 6 Tactical Retreats 2 | . 1 1 Traps | -11 -10 -10 ------- Run | Yrd Mat Min Traps Triggered . | . . . Indirectly . | . . . Trap Hack Attempts . | . . . Triggered . | . . . Disarmed . | . . . Reprogrammed . | . . . Reused . | . . . Traps Extracted . | . . . Installed . | . . . Triggered . | . . . Machines | -11 -10 -10 ---------- Run | Yrd Mat Min Machines Disabled 1 | . . 1 Max in Single Turn 1 | . . 1 Machines Repaired . | . . . Machines Dismantled . | . . . Machines Sabotaged . | . . . Overloaded Fab Kills . | . . . Hacking | -11 -10 -10 --------- Run | Yrd Mat Min Machines Accessed . | . . . Terminals . | . . . Fabricators . | . . . Repair Stations . | . . . Recycling Units . | . . . Scanalyzers . | . . . Garrison Access . | . . . Total Hacks . | . . . Successful . | . . . Failed . | . . . Catastrophic . | . . . Database Lockouts . | . . . Manual . | . . . Terminals . | . . . Fabricators . | . . . Repair Stations . | . . . Recycling Units . | . . . Scanalyzers . | . . . Garrison Access . | . . . Terminal Hacks . | . . . Fabricator Hacks . | . . . Repair Station Hacks . | . . . Recycling Unit Hacks . | . . . Scanalyzer . | . . . Garrison Access Hacks . | . . . Unauthorized Hacks . | . . . Terminals . | . . . Fabricators . | . . . Repair Stations . | . . . Recycling Units . | . . . Scanalyzers . | . . . Garrison Access . | . . . Data Cores Recovered . | . . . Used . | . . . Hacking Detections . | . . . Full Trace Events . | . . . Feedback Events . | . . . Feedback Blocked . | . . . Robot Schematics Acquired . | . . . Robots Built . | . . . Authchips . | . . . Time . | . . . Total Robot Build Rating . | . . . Part Schematics Acquired . | . . . Parts Built . | . . . Authchips . | . . . Time . | . . . Total Part Build Rating . | . . . Parts Repaired . | . . . Time . | . . . Parts Recycled . | . . . Recycled Matter . | . . . Retrieved Matter . | . . . Retrieved Components . | . . . Parts Scanalyzed . | . . . Part Schematics Acquired . | . . . Parts Damaged . | . . . Bothacking | -11 -10 -10 ------------ Run | Yrd Mat Min Used RIF Installer . | . . . Robots Hacked . | . . . Non-combat . | . . . Combat . | . . . Robot Hacks Applied . | . . . Relay Couplers Released . | . . . Fabnet Peak Effective % . | . . . Robots Rewired . | . . . Allies Hacked . | . . . Hacks Repelled . | . . . Allies | -11 -10 -10 -------- Run | Yrd Mat Min Total Allies . | . . . Largest Group . | . . . Highest-Rated Group . | . . . Highest-Rated Ally . | . . . Total Orders . | . . . Ally Attacks . | . . . Total Damage . | . . . Kills . | . . . Allies Corrupted . | . . . Allies Melted . | . . . Intel | -11 -10 -10 ------- Run | Yrd Mat Min Robot Analysis Total . | . . . Derelict Logs Recovered . | . . . Drone Launches . | . . . Drone Recoveries . | . . . Exploration | -11 -10 -10 ------------- Run | Yrd Mat Min Turns Passed 540 | 55 221 264 Spaces Moved 279 | 32 118 129 Core 7 | 5 . 2 Treads 272 | 27 118 127 Legs . | . . . Wheels . | . . . Hover . | . . . Flight . | . . . Fastest Speed 50 | 50 160 50 Average Speed 157 | 145 160 158 Slowest Speed 160 | 160 160 160 Overloaded Moves . | . . . Propulsion Burnouts . | . . . Robots Hopped . | . . . Cave-ins Triggered . | . . . Exploration Rate (%) 24 | 5 32 35 Regions Visited 2 Branch Regions 1 Pre-discovered Areas . | . . . Known Exits Taken . | . . . Unknown Exits Taken 2 | 1 1 . Scrap Searched . | . . . Spaces Dug . | . . . Terrain Destroyed 68 | . 25 43 Melee . | . . . Projectile . | . . . AOE 68 | . 25 43 Terrain Rammed . | . . . Walls Destroyed . | . . . Machines Disabled . | . . . Actions | -11 -10 -10 --------- Run | Yrd Mat Min Total 325 | 38 132 155 Wait 1 | . 1 . Move 277 | 31 117 129 Hop . | . . . Pick Up . | . . . Fast Attach 11 | 6 2 3 Attach . | . . . Detach 1 | . 1 . Swap 2 | . . 2 Drop 3 | 1 1 1 Fire 28 | . 10 18 Melee . | . . . Ram . | . . . Kick . | . . . Crush 2 | . . 2 Escape Stasis . | . . . Rewire . | . . . Trap . | . . . Miscellaneous . | . . . Route ------- -11/Scrapyard -10/Materials -10/Mines (discovered 1 exit: [*Mat]) History --------- Turn | Location | Event 13 | -11/Scrapyard | Discovered new exit (range 15) 56 | -11/Scrapyard | Entered Materials 245 | -10/Materials | Discovered new exit (range 13) 277 | -10/Materials | Entered Mines 301 | -10/Mines | Destroyed 8 combat bots 316 | -10/Mines | Build established: Mutant 339 | -10/Mines | Assembled infested the area 386 | -10/Mines | Core integrity fell below 50% 412 | -10/Mines | Lost 3 parts (1p1n1w) 506 | -10/Mines | Discovered new exit (range 12) 530 | -10/Mines | Core integrity fell below 20% 541 | -10/Mines | Destroyed by G-47 Trooper with Particle Gun Last Messages --------------- U-05 Engineer builds a Wall. Slammed into T-07 Excavator. U-05 Engineer lays Concrete. R-06 Scavenger destroyed. K-01 Serf collects debris. EXIT=FOUND G-47 Trooper knocked back. Lgt. Ion Engine destroyed. Critical hit (Burn: +37). Lgt. Treads destroyed. G-34 Mercenary destroyed. K-01 Serf collects debris. Acquired 34 matter. K-01 Serf collects debris. Lgt. Cannon destroyed. Critical hit (Burn: +37). Acquired Ion Engine. K-01 Serf destroyed. G-47 Trooper suffers critical hit (Burn). Critical hit (Burn: +37). Map ----- +----------------------------------------------------+ | ????????????????????????????# | | ???????????#######?########## | | ??????????## ### | | ?????????## ## ### #### | | ????????## ## #?# ##?? | | ???????## % ### ##?? | | ?????### ! ### #### | | ????## #### # | | ????# ##?# # | | ????# ####??# #[ " # | | ????# ##?????## # | | ????## ##??????## # | | ?????## #?###????# # | | ??????## ## ##???## # | | ???????## ###### # | | ????????## ######## | | ?????????# ##????? | | ????????## ##???? | | ?######## ##??? | | ?# ?? | | ?# ?? | | ?# #### ##### ?? | | ?# #??## ##???? ## ??? | | ?# =#???# ##?????#?? ???? | | ?#!=###?## ##????????????? | | ?#%t@ #??## #????????????? | | ?# * #??# #???????????? | | ?# #?## #???????????? | | ?# g #?? ??????????? | | ?# r #?? ????????? | | ?# < ##??# ######???????? | | ?# ! ###????###????????????? | | ?# ! #?????????????????????? | | ?## #?????????????????????? | | ??## #?????????????????????? | | ???? #?????????????????????? | | ???? ?????????????????????? | | ????###?????????????????????? | | ????????????????????????????? | | ????????????????????????????? | | ????????????????????????????? | | ????????????????????????????? | | ????????????????????????????? | | ????????????????????????????? | | ????????????????????????????? | | ????????????????????????????? | | ????????????????????????????? | | ????????????????????????????? | | ????????????????????????????? | | ????????????????????????????? | +----------------------------------------------------+ Best States ------------- Heat Dissipation 25 Energy Generation 10 Energy Capacity 250 Matter Stores 264 Matter Capacity 300 Sight Range 16 Terrain Scan Density 10 Evasion (%) 40 Recoil Reduction 2 Item Schematics ----------------- None Robot Schematics ------------------ None Fabricated ------------ Nothing Alien Tech Used ----------------- None Achievements -------------- None Challenges ------------ None Game ------ Seed StormLinkedExoskeleton Manual? 0 Play Time 00:05:46 Cumulative 53.3 hours Start 2024.07.29 @ 13:58:43 End 2024.07.29 @ 14:02:32 Sessions 1 Manual Loads 0 Difficulty Rogue Special Mode None Game No. 125 Rogue 55 Adventurer 70 Explorer 0 Win Type - Total 0 Types 0/0/0/0/0/0/0/0/0 Lore% 34 Gallery% 38 Achievement% 31 Wizard Run 0 Options --------- Layout 0 ASCII 0 Keyboard 0 Movement Mouse Keybinds 0 Fullscreen 1 Font 24/Smallcaps Map View 76x50 Zoom Use 0% Tactical HUD 0 Map Filters NONE Filters NONE Steam 1 RUN: f706365a-bd5a-41e1-8b06-6b3b6d7357dd